[Event "Titled Tuesday Blitz December 06 Early 2022"]
[White "Han, Yichen"]
[Black "Aradhya, Garg"]
[WhiteFideId "1054430"]
[BlackFideId "25006746"]
[WhiteElo "2323"]
[BlackElo "2278"]
[Result "1-0"]
[Round "09"]
[TimeControl "180+1"]
[Date "2022.12.06"]
[WhiteClock "0:00:03"]
[BlackClock "0:00:03"]

1. d4 {[%clk 0:03:00]}  d5 {[%clk 0:03:00]} 2. c4 {[%clk 0:03:00]}  c6 {[%clk 0:03:00]} 3. Nf3 {[%clk 0:02:58]}  Nf6 {[%clk 0:03:00]} 4. Nc3 {[%clk 0:02:58]}  dxc4 {[%clk 0:03:00]} 5. g3 {[%clk 0:02:56]}  g6 {[%clk 0:02:59]} 6. Bg2 {[%clk 0:02:55]}  Bg7 {[%clk 0:02:59]} 7. O-O {[%clk 0:02:55]}  O-O {[%clk 0:03:00]} 8. Ne5 {[%clk 0:02:55]}  Ng4 {[%clk 0:03:00]} 9. Nxg4 {[%clk 0:02:38]}  Bxg4 {[%clk 0:03:01]} 10. Qa4 {[%clk 0:02:37]}  b5 {[%clk 0:02:54]} 11. Qc2 {[%clk 0:02:32]}  Na6 {[%clk 0:02:49]} 12. a3 {[%clk 0:02:29]}  Rc8 {[%clk 0:02:46]} 13. Bd2 {[%clk 0:02:20]}  Qxd4 {[%clk 0:02:44]} 14. Rad1 {[%clk 0:02:17]}  Nc5 {[%clk 0:02:40]} 15. Be3 {[%clk 0:02:11]}  Qe5 {[%clk 0:02:38]} 16. Bd4 {[%clk 0:02:10]}  Qh5 {[%clk 0:02:20]} 17. h3 {[%clk 0:01:44]}  Bxh3 {[%clk 0:02:11]} 18. Bxh3 {[%clk 0:01:39]}  Rcd8 {[%clk 0:01:37]} 19. Bxg7 {[%clk 0:01:30]}  Kxg7 {[%clk 0:01:37]} 20. Bg2 {[%clk 0:01:30]}  Rc8 {[%clk 0:01:33]} 21. Ne4 {[%clk 0:01:25]}  Ne6 {[%clk 0:01:33]} 22. Qc3+ {[%clk 0:01:20]}  Kg8 {[%clk 0:01:32]} 23. Rd7 {[%clk 0:01:20]}  f5 {[%clk 0:01:27]} 24. Rxe7 {[%clk 0:01:18]}  fxe4 {[%clk 0:01:26]} 25. Rxe6 {[%clk 0:01:18]}  Rce8 {[%clk 0:01:26]} 26. Rxe4 {[%clk 0:01:11]}  Rxe4 {[%clk 0:01:25]} 27. Bxe4 {[%clk 0:01:12]}  Qxe2 {[%clk 0:01:22]} 28. Bxc6 {[%clk 0:01:11]}  Rf5 {[%clk 0:01:21]} 29. Qe3 {[%clk 0:00:54]}  Qxe3 {[%clk 0:01:15]} 30. fxe3 {[%clk 0:00:54]}  Rg5 {[%clk 0:01:15]} 31. Kg2 {[%clk 0:00:50]}  Rc5 {[%clk 0:01:09]} 32. Bf3 {[%clk 0:00:48]}  c3 {[%clk 0:01:09]} 33. bxc3 {[%clk 0:00:46]}  Rxc3 {[%clk 0:01:10]} 34. Rb1 {[%clk 0:00:41]}  Rxe3 {[%clk 0:01:05]} 35. Rxb5 {[%clk 0:00:40]}  Rxa3 {[%clk 0:01:05]} 36. Bd5+ {[%clk 0:00:35]}  Kg7 {[%clk 0:01:01]} 37. Rb7+ {[%clk 0:00:36]}  Kh8 {[%clk 0:01:01]} 38. Kh3 {[%clk 0:00:33]}  Ra4 {[%clk 0:00:58]} 39. g4 {[%clk 0:00:26]}  h5 {[%clk 0:00:54]} 40. g5 {[%clk 0:00:26]}  Rg4 {[%clk 0:00:52]} 41. Rb8+ {[%clk 0:00:24]}  Kg7 {[%clk 0:00:49]} 42. Rb7+ {[%clk 0:00:19]}  Kh8 {[%clk 0:00:49]} 43. Rxa7 {[%clk 0:00:13]}  Rxg5 {[%clk 0:00:49]} 44. Be4 {[%clk 0:00:11]}  Kg8 {[%clk 0:00:49]} 45. Bc2 {[%clk 0:00:09]}  Kf8 {[%clk 0:00:49]} 46. Kh4 {[%clk 0:00:08]}  Rg4+ {[%clk 0:00:49]} 47. Kh3 {[%clk 0:00:08]}  Rg5 {[%clk 0:00:49]} 48. Bb3 {[%clk 0:00:07]}  Rf5 {[%clk 0:00:44]} 49. Kg3 {[%clk 0:00:05]}  Rg5+ {[%clk 0:00:42]} 50. Kf4 {[%clk 0:00:05]}  Rf5+ {[%clk 0:00:42]} 51. Ke4 {[%clk 0:00:05]}  h4 {[%clk 0:00:42]} 52. Be6 {[%clk 0:00:04]}  Rb5 {[%clk 0:00:33]} 53. Bd5 {[%clk 0:00:02]}  h3 {[%clk 0:00:21]} 54. Rh7 {[%clk 0:00:03]}  Rb2 {[%clk 0:00:12]} 55. Rxh3 {[%clk 0:00:02]}  Ke7 {[%clk 0:00:13]} 56. Ke5 {[%clk 0:00:01]}  Re2+ {[%clk 0:00:12]} 57. Be4 {[%clk 0:00:02]}  Ra2 {[%clk 0:00:10]} 58. Rh7+ {[%clk 0:00:02]}  Ke8 {[%clk 0:00:09]} 59. Bxg6+ {[%clk 0:00:02]}  Kd8 {[%clk 0:00:09]} 60. Be4 {[%clk 0:00:02]}  Kc8 {[%clk 0:00:07]} 61. Bd5 {[%clk 0:00:02]}  Ra6 {[%clk 0:00:06]} 62. Kd4 {[%clk 0:00:02]}  Rg6 {[%clk 0:00:06]} 63. Kc5 {[%clk 0:00:02]}  Kd8 {[%clk 0:00:06]} 64. Bc6 {[%clk 0:00:02]}  Rf6 {[%clk 0:00:05]} 65. Bd5 {[%clk 0:00:02]}  Rg6 {[%clk 0:00:05]} 66. Ra7 {[%clk 0:00:03]}  Rf6 {[%clk 0:00:05]} 67. Rb7 {[%clk 0:00:04]}  Rg6 {[%clk 0:00:06]} 68. Kd4 {[%clk 0:00:04]}  Rh6 {[%clk 0:00:05]} 69. Ke5 {[%clk 0:00:05]}  Rg6 {[%clk 0:00:04]} 70. Be6 {[%clk 0:00:04]}  Rg1 {[%clk 0:00:03]} 71. Kd6 {[%clk 0:00:05]}  Rd1+ {[%clk 0:00:03]} 72. Bd5 {[%clk 0:00:05]}  Kc8 {[%clk 0:00:03]} 73. Ra7 {[%clk 0:00:05]}  Rb1 {[%clk 0:00:03]} 74. Rg7 {[%clk 0:00:03]}  Rb6+ {[%clk 0:00:04]} 75. Kc5 {[%clk 0:00:02]}  Rf6 {[%clk 0:00:03]} 76. Bc6 {[%clk 0:00:03]}  Kd8 {[%clk 0:00:03]} 77. Rg8+ {[%clk 0:00:02]}  Ke7 {[%clk 0:00:04]} 78. Bd5 {[%clk 0:00:03]}  Rf1 {[%clk 0:00:02]} 79. Rg7+ {[%clk 0:00:03]}  Ke8 {[%clk 0:00:02]} 80. Kd6 {[%clk 0:00:03]}  Kf8 {[%clk 0:00:03]} 81. Rg8# {[%clk 0:00:03]} 1-0


[Site "https://www.chess.com"]

[Event "Titled Tuesday Blitz December 06 Early 2022"]
[White "Kirillov, Dmitry"]
[Black "Grabinsky, Vladimir"]
[WhiteFideId "34180572"]
[BlackFideId "14107074"]
[WhiteElo "2111"]
[BlackElo "2198"]
[Result "1-0"]
[Round "09"]
[TimeControl "180+1"]
[Date "2022.12.07"]
[WhiteClock "0:00:07"]
[BlackClock "0:00:02"]

1. e4 {[%clk 0:03:00]}  c5 {[%clk 0:02:59]} 2. Nc3 {[%clk 0:03:00]}  Nc6 {[%clk 0:02:59]} 3. f4 {[%clk 0:02:59]}  g6 {[%clk 0:02:59]} 4. Nf3 {[%clk 0:02:59]}  Bg7 {[%clk 0:03:00]} 5. Bc4 {[%clk 0:03:00]}  e6 {[%clk 0:02:59]} 6. e5 {[%clk 0:03:00]}  f6 {[%clk 0:02:44]} 7. Nb5 {[%clk 0:02:18]}  fxe5 {[%clk 0:02:25]} 8. Nd6+ {[%clk 0:02:15]}  Ke7 {[%clk 0:02:22]} 9. fxe5 {[%clk 0:02:16]}  Nxe5 {[%clk 0:02:20]} 10. Nxe5 {[%clk 0:02:16]}  Bxe5 {[%clk 0:02:21]} 11. d4 {[%clk 0:02:16]}  cxd4 {[%clk 0:02:09]} 12. Bg5+ {[%clk 0:01:59]}  Nf6 {[%clk 0:02:09]} 13. Ne4 {[%clk 0:01:49]}  d5 {[%clk 0:01:32]} 14. Nxf6 {[%clk 0:01:46]}  Bxf6 {[%clk 0:01:29]} 15. Bxf6+ {[%clk 0:01:47]}  Kxf6 {[%clk 0:01:30]} 16. O-O+ {[%clk 0:01:48]}  Kg7 {[%clk 0:01:25]} 17. Qxd4+ {[%clk 0:01:33]}  Kg8 {[%clk 0:01:25]} 18. Kh1 {[%clk 0:01:27]}  Bd7 {[%clk 0:01:21]} 19. Bxd5 {[%clk 0:01:10]}  exd5 {[%clk 0:01:11]} 20. Qxd5+ {[%clk 0:01:11]}  Kg7 {[%clk 0:01:11]} 21. Rf7+ {[%clk 0:01:11]}  Kh6 {[%clk 0:01:08]} 22. Rxd7 {[%clk 0:00:54]}  Qg5 {[%clk 0:01:08]} 23. Qd3 {[%clk 0:00:48]}  Rae8 {[%clk 0:00:34]} 24. Qh3+ {[%clk 0:00:39]}  Qh5 {[%clk 0:00:33]} 25. Qxh5+ {[%clk 0:00:39]}  Kxh5 {[%clk 0:00:31]} 26. Rxb7 {[%clk 0:00:37]}  Re2 {[%clk 0:00:30]} 27. Rxa7 {[%clk 0:00:32]}  Rxc2 {[%clk 0:00:29]} 28. b4 {[%clk 0:00:28]}  Re8 {[%clk 0:00:20]} 29. b5 {[%clk 0:00:24]}  Ree2 {[%clk 0:00:17]} 30. Rg1 {[%clk 0:00:24]}  Rxa2 {[%clk 0:00:16]} 31. Rxh7+ {[%clk 0:00:21]}  Kg5 {[%clk 0:00:17]} 32. b6 {[%clk 0:00:17]}  Rab2 {[%clk 0:00:17]} 33. b7 {[%clk 0:00:17]}  Re5 {[%clk 0:00:15]} 34. h4+ {[%clk 0:00:14]}  Kg4 {[%clk 0:00:15]} 35. Rg7 {[%clk 0:00:11]}  Re6 {[%clk 0:00:15]} 36. Rf1 {[%clk 0:00:07]}  Kxh4 {[%clk 0:00:11]} 37. Rf8 {[%clk 0:00:06]}  Kg3 {[%clk 0:00:08]} 38. Rf1 {[%clk 0:00:04]}  Rc6 {[%clk 0:00:06]} 39. Rg1 {[%clk 0:00:02]}  Rcb6 {[%clk 0:00:05]} 40. b8=Q+ {[%clk 0:00:02]}  Rxb8 {[%clk 0:00:04]} 41. Rxg6+ {[%clk 0:00:03]}  Kf4 {[%clk 0:00:04]} 42. Rh6 {[%clk 0:00:04]}  Kg5 {[%clk 0:00:04]} 43. Rh2 {[%clk 0:00:04]}  R8b3 {[%clk 0:00:03]} 44. Rh8 {[%clk 0:00:04]}  Rb1 {[%clk 0:00:03]} 45. Kh2 {[%clk 0:00:03]}  Rxg1 {[%clk 0:00:02]} 46. Kxg1 {[%clk 0:00:04]}  Kg4 {[%clk 0:00:01]} 47. Kh2 {[%clk 0:00:05]}  Kg5 {[%clk 0:00:01]} 48. Rg8+ {[%clk 0:00:06]}  Kf6 {[%clk 0:00:01]} 49. Rh8 {[%clk 0:00:07]}  Kg6 {[%clk 0:00:02]} 50. Rh3 {[%clk 0:00:08]}  Rxh3+ {[%clk 0:00:01]} 51. Kxh3 {[%clk 0:00:07]}  Kg5 {[%clk 0:00:02]} 52. Kg3 {[%clk 0:00:08]}  Kg6 {[%clk 0:00:02]} 53. Kg4 {[%clk 0:00:08]}  Kf6 {[%clk 0:00:02]} 54. Kh5 {[%clk 0:00:08]}  Kg7 {[%clk 0:00:02]} 55. Kg5 {[%clk 0:00:07]} 1-0


[Site "https://www.chess.com"]

[Event "Titled Tuesday Blitz December 06 Early 2022"]
[White "Koellner, Ruben Gideon"]
[Black "Andreikin, Dmitry"]
[WhiteFideId "12993093"]
[BlackFideId "4158814"]
[WhiteElo "2303"]
[BlackElo "2735"]
[Result "0-1"]
[Round "09"]
[TimeControl "180+1"]
[Date "2022.12.06"]
[WhiteClock "0:00:01"]
[BlackClock "0:00:11"]

1. d4 {[%clk 0:03:00]}  d5 {[%clk 0:02:47]} 2. Nf3 {[%clk 0:03:00]}  Nf6 {[%clk 0:02:47]} 3. Nbd2 {[%clk 0:02:57]}  c5 {[%clk 0:02:43]} 4. e3 {[%clk 0:02:57]}  Nc6 {[%clk 0:02:43]} 5. c3 {[%clk 0:02:57]}  g6 {[%clk 0:02:39]} 6. dxc5 {[%clk 0:02:55]}  Bg7 {[%clk 0:02:39]} 7. Bd3 {[%clk 0:02:41]}  O-O {[%clk 0:02:26]} 8. O-O {[%clk 0:02:40]}  Bg4 {[%clk 0:02:26]} 9. h3 {[%clk 0:02:39]}  Bxf3 {[%clk 0:02:26]} 10. Nxf3 {[%clk 0:02:30]}  Nd7 {[%clk 0:02:24]} 11. e4 {[%clk 0:02:23]}  d4 {[%clk 0:02:21]} 12. cxd4 {[%clk 0:02:15]}  Nxd4 {[%clk 0:02:21]} 13. Be3 {[%clk 0:02:03]}  Nxc5 {[%clk 0:02:09]} 14. Bc2 {[%clk 0:01:54]}  e5 {[%clk 0:01:55]} 15. Bxd4 {[%clk 0:01:39]}  exd4 {[%clk 0:01:55]} 16. Bd3 {[%clk 0:01:39]}  Qb6 {[%clk 0:01:54]} 17. b3 {[%clk 0:01:36]}  Rac8 {[%clk 0:01:54]} 18. Rc1 {[%clk 0:01:30]}  Nxd3 {[%clk 0:01:53]} 19. Qxd3 {[%clk 0:01:31]}  Rc3 {[%clk 0:01:53]} 20. Rxc3 {[%clk 0:01:28]}  dxc3 {[%clk 0:01:53]} 21. e5 {[%clk 0:01:29]}  Rc8 {[%clk 0:01:50]} 22. Rc1 {[%clk 0:01:28]}  Qc5 {[%clk 0:01:43]} 23. Qe4 {[%clk 0:01:20]}  c2 {[%clk 0:01:15]} 24. Ne1 {[%clk 0:01:07]}  Qxe5 {[%clk 0:01:14]} 25. Qxe5 {[%clk 0:01:05]}  Bxe5 {[%clk 0:01:15]} 26. Rxc2 {[%clk 0:01:06]}  Rd8 {[%clk 0:01:15]} 27. Kf1 {[%clk 0:00:56]}  Kf8 {[%clk 0:01:13]} 28. Ke2 {[%clk 0:00:55]}  Ke7 {[%clk 0:01:13]} 29. Nd3 {[%clk 0:00:52]}  Bd6 {[%clk 0:01:13]} 30. Rc4 {[%clk 0:00:48]}  f5 {[%clk 0:01:10]} 31. Ne1 {[%clk 0:00:40]}  Kf6 {[%clk 0:01:05]} 32. Nc2 {[%clk 0:00:38]}  Re8+ {[%clk 0:01:04]} 33. Kf3 {[%clk 0:00:37]}  g5 {[%clk 0:00:57]} 34. Ne3 {[%clk 0:00:32]}  h5 {[%clk 0:00:55]} 35. g3 {[%clk 0:00:24]}  g4+ {[%clk 0:00:52]} 36. hxg4 {[%clk 0:00:25]}  hxg4+ {[%clk 0:00:49]} 37. Ke2 {[%clk 0:00:25]}  Ke6 {[%clk 0:00:38]} 38. Kd3 {[%clk 0:00:19]}  Rh8 {[%clk 0:00:36]} 39. Rc2 {[%clk 0:00:18]}  Be5 {[%clk 0:00:28]} 40. Nc4 {[%clk 0:00:13]}  Bc7 {[%clk 0:00:23]} 41. Re2+ {[%clk 0:00:13]}  Kf6 {[%clk 0:00:23]} 42. Ne3 {[%clk 0:00:11]}  Rd8+ {[%clk 0:00:23]} 43. Kc2 {[%clk 0:00:11]}  Bb6 {[%clk 0:00:23]} 44. Rd2 {[%clk 0:00:09]}  Rc8+ {[%clk 0:00:18]} 45. Kd3 {[%clk 0:00:09]}  Bc5 {[%clk 0:00:18]} 46. Rc2 {[%clk 0:00:08]}  Rd8+ {[%clk 0:00:17]} 47. Ke2 {[%clk 0:00:08]}  b6 {[%clk 0:00:18]} 48. Rd2 {[%clk 0:00:08]}  Re8 {[%clk 0:00:15]} 49. Rd7 {[%clk 0:00:07]}  f4 {[%clk 0:00:15]} 50. gxf4 {[%clk 0:00:07]}  g3 {[%clk 0:00:16]} 51. Kf3 {[%clk 0:00:04]}  gxf2 {[%clk 0:00:16]} 52. Ng4+ {[%clk 0:00:03]}  Kf5 {[%clk 0:00:13]} 53. Nxf2 {[%clk 0:00:01]}  Re3+ {[%clk 0:00:12]} 54. Kg2 {[%clk 0:00:02]}  Re2 {[%clk 0:00:13]} 55. Rf7+ {[%clk 0:00:02]}  Kg6 {[%clk 0:00:12]} 56. Rxa7 {[%clk 0:00:01]}  Rxf2+ {[%clk 0:00:12]} 57. Kg3 {[%clk 0:00:01]}  Kf5 {[%clk 0:00:12]} 58. Rf7+ {[%clk 0:00:01]}  Ke4 {[%clk 0:00:11]} 59. Ra7 {[%clk 0:00:01]}  Rf3+ {[%clk 0:00:11]} 0-1


[Site "https://www.chess.com"]

[Event "Titled Tuesday Blitz December 06 Early 2022"]
[White "Levine, David"]
[Black "Rian, Kapriaga"]
[WhiteFideId "2011611"]
[BlackFideId "7103263"]
[WhiteElo "2193"]
[BlackElo "2284"]
[Result "0-1"]
[Round "09"]
[TimeControl "180+1"]
[Date "2022.12.07"]
[WhiteClock "0:00:11"]
[BlackClock "0:00:58"]

1. d4 {[%clk 0:02:59]}  f5 {[%clk 0:02:56]} 2. c4 {[%clk 0:02:58]}  e6 {[%clk 0:02:56]} 3. g3 {[%clk 0:02:58]}  Nf6 {[%clk 0:02:55]} 4. Bg2 {[%clk 0:02:58]}  c6 {[%clk 0:02:49]} 5. Nf3 {[%clk 0:02:57]}  d5 {[%clk 0:02:48]} 6. O-O {[%clk 0:02:57]}  Bd6 {[%clk 0:02:47]} 7. Nc3 {[%clk 0:02:56]}  O-O {[%clk 0:02:45]} 8. Qc2 {[%clk 0:02:53]}  Qe7 {[%clk 0:02:38]} 9. Ne5 {[%clk 0:02:42]}  Bd7 {[%clk 0:02:32]} 10. f3 {[%clk 0:02:30]}  Be8 {[%clk 0:02:28]} 11. e4 {[%clk 0:02:07]}  fxe4 {[%clk 0:02:14]} 12. fxe4 {[%clk 0:02:06]}  Bxe5 {[%clk 0:01:44]} 13. dxe5 {[%clk 0:02:06]}  Ng4 {[%clk 0:01:42]} 14. Rxf8+ {[%clk 0:01:53]}  Qxf8 {[%clk 0:01:39]} 15. exd5 {[%clk 0:01:47]}  Qc5+ {[%clk 0:01:36]} 16. Kf1 {[%clk 0:01:25]}  Qxc4+ {[%clk 0:01:25]} 17. Qe2 {[%clk 0:01:13]}  Qxe2+ {[%clk 0:01:17]} 18. Kxe2 {[%clk 0:01:07]}  cxd5 {[%clk 0:01:14]} 19. Bh3 {[%clk 0:00:46]}  Bh5 {[%clk 0:01:10]} 20. Bxg4 {[%clk 0:00:35]}  Bxg4+ {[%clk 0:01:09]} 21. Ke3 {[%clk 0:00:34]}  Nc6 {[%clk 0:01:08]} 22. Nb5 {[%clk 0:00:11]}  Rf8 {[%clk 0:00:58]} 0-1


[Site "https://www.chess.com"]

[Event "Titled Tuesday Blitz December 06 Early 2022"]
[White "Makhmudov, Shukhrat"]
[Black "Mitrovic, Darko R"]
[WhiteFideId "14200775"]
[BlackFideId "927023"]
[WhiteElo "2135"]
[BlackElo "2150"]
[Result "1-0"]
[Round "09"]
[TimeControl "180+1"]
[Date "2022.12.07"]
[WhiteClock "0:01:30"]
[BlackClock "0:00:35"]

1. e4 {[%clk 0:03:00]}  e6 {[%clk 0:02:51]} 2. d4 {[%clk 0:02:59]}  d5 {[%clk 0:02:50]} 3. exd5 {[%clk 0:03:00]}  exd5 {[%clk 0:02:48]} 4. Nf3 {[%clk 0:03:00]}  Nf6 {[%clk 0:02:48]} 5. Bd3 {[%clk 0:03:01]}  Bd6 {[%clk 0:02:47]} 6. Qe2+ {[%clk 0:02:59]}  Be7 {[%clk 0:02:32]} 7. O-O {[%clk 0:02:58]}  O-O {[%clk 0:02:32]} 8. Re1 {[%clk 0:02:57]}  Re8 {[%clk 0:02:27]} 9. h3 {[%clk 0:02:54]}  h6 {[%clk 0:02:23]} 10. c3 {[%clk 0:02:54]}  Be6 {[%clk 0:02:19]} 11. Ne5 {[%clk 0:02:53]}  c5 {[%clk 0:02:17]} 12. Bf4 {[%clk 0:02:48]}  Nc6 {[%clk 0:02:16]} 13. Nxc6 {[%clk 0:02:47]}  bxc6 {[%clk 0:02:16]} 14. Nd2 {[%clk 0:02:46]}  cxd4 {[%clk 0:02:08]} 15. cxd4 {[%clk 0:02:45]}  Qb6 {[%clk 0:02:08]} 16. Nb3 {[%clk 0:02:44]}  a5 {[%clk 0:02:07]} 17. Rac1 {[%clk 0:02:39]}  Ne4 {[%clk 0:01:52]} 18. f3 {[%clk 0:02:25]}  a4 {[%clk 0:01:45]} 19. fxe4 {[%clk 0:02:13]}  axb3 {[%clk 0:01:43]} 20. a3 {[%clk 0:02:13]}  dxe4 {[%clk 0:01:40]} 21. Qxe4 {[%clk 0:02:12]}  g6 {[%clk 0:01:22]} 22. Rxc6 {[%clk 0:02:10]}  Qb7 {[%clk 0:01:05]} 23. Rxe6 {[%clk 0:02:08]}  Qxe4 {[%clk 0:01:04]} 24. R6xe4 {[%clk 0:02:08]}  h5 {[%clk 0:00:56]} 25. Rxe7 {[%clk 0:02:08]}  Rxe7 {[%clk 0:00:55]} 26. Rxe7 {[%clk 0:02:07]}  Kf8 {[%clk 0:00:52]} 27. Bd6 {[%clk 0:02:03]}  Kg7 {[%clk 0:00:50]} 28. Bc4 {[%clk 0:02:03]}  Rf8 {[%clk 0:00:50]} 29. Rd7 {[%clk 0:01:48]}  Re8 {[%clk 0:00:47]} 30. Rxf7+ {[%clk 0:01:47]}  Kh6 {[%clk 0:00:47]} 31. h4 {[%clk 0:01:42]}  g5 {[%clk 0:00:44]} 32. Rf6+ {[%clk 0:01:41]}  Kg7 {[%clk 0:00:44]} 33. hxg5 {[%clk 0:01:39]}  Re4 {[%clk 0:00:43]} 34. Be5 {[%clk 0:01:38]}  Rg4 {[%clk 0:00:40]} 35. Rf4+ {[%clk 0:01:37]}  Kg6 {[%clk 0:00:40]} 36. Rxg4 {[%clk 0:01:36]}  hxg4 {[%clk 0:00:40]} 37. Bf6 {[%clk 0:01:36]}  Kf5 {[%clk 0:00:39]} 38. Bxb3 {[%clk 0:01:35]}  g3 {[%clk 0:00:38]} 39. a4 {[%clk 0:01:34]}  Kg6 {[%clk 0:00:38]} 40. Be6 {[%clk 0:01:33]}  Kh5 {[%clk 0:00:36]} 41. Bf5 {[%clk 0:01:31]}  Kh4 {[%clk 0:00:36]} 42. a5 {[%clk 0:01:31]}  Kh5 {[%clk 0:00:35]} 43. a6 {[%clk 0:01:31]}  Kh4 {[%clk 0:00:35]} 44. a7 {[%clk 0:01:31]}  Kh5 {[%clk 0:00:35]} 45. a8=R {[%clk 0:01:30]} 1-0


[Site "https://www.chess.com"]

[Event "Titled Tuesday Blitz December 06 Early 2022"]
[White "Manon-og, Ramon Jr."]
[Black "Borgaonkar Akshay"]
[WhiteFideId "5200776"]
[BlackFideId "25639110"]
[WhiteElo "2370"]
[BlackElo "2063"]
[Result "0-1"]
[Round "09"]
[TimeControl "180+1"]
[Date "2022.12.07"]
[WhiteClock "0:01:46"]
[BlackClock "0:02:29"]

1. e4 {[%clk 0:03:00]}  c5 {[%clk 0:02:58]} 2. Nf3 {[%clk 0:03:01]}  e6 {[%clk 0:02:59]} 3. g3 {[%clk 0:03:00]}  Nc6 {[%clk 0:02:59]} 4. Bg2 {[%clk 0:03:00]}  Qc7 {[%clk 0:02:59]} 5. O-O {[%clk 0:03:01]}  a6 {[%clk 0:02:59]} 6. d4 {[%clk 0:03:00]}  cxd4 {[%clk 0:02:59]} 7. Nxd4 {[%clk 0:03:01]}  Nf6 {[%clk 0:03:00]} 8. c4 {[%clk 0:02:59]}  h5 {[%clk 0:02:57]} 9. h4 {[%clk 0:02:58]}  Ng4 {[%clk 0:02:53]} 10. Nxc6 {[%clk 0:02:52]}  bxc6 {[%clk 0:02:52]} 11. Nc3 {[%clk 0:02:50]}  Bc5 {[%clk 0:02:52]} 12. Na4 {[%clk 0:02:41]}  Qxg3 {[%clk 0:02:49]} 13. Qxg4 {[%clk 0:02:16]}  hxg4 {[%clk 0:02:46]} 14. Nxc5 {[%clk 0:02:16]}  Qxh4 {[%clk 0:02:47]} 15. Rd1 {[%clk 0:02:10]}  g3 {[%clk 0:02:44]} 16. Be3 {[%clk 0:02:01]}  d6 {[%clk 0:02:30]} 17. Rxd6 {[%clk 0:01:47]}  gxf2+ {[%clk 0:02:29]} 18. Bxf2 {[%clk 0:01:47]}  Qh2+ {[%clk 0:02:28]} 19. Kf1 {[%clk 0:01:46]}  Qxd6 {[%clk 0:02:29]} 0-1


[Site "https://www.chess.com"]

[Event "Titled Tuesday Blitz December 06 Early 2022"]
[White "Martin, Lewis"]
[Black "Osiecki, Stanislaw"]
[WhiteFideId "410551"]
[BlackFideId "1102990"]
[WhiteElo "2145"]
[BlackElo "2088"]
[Result "1-0"]
[Round "09"]
[TimeControl "180+1"]
[Date "2022.12.07"]
[WhiteClock "0:00:11"]
[BlackClock "0:00:01"]

1. e4 {[%clk 0:03:00]}  e6 {[%clk 0:02:54]} 2. d4 {[%clk 0:02:59]}  d5 {[%clk 0:02:54]} 3. Nd2 {[%clk 0:03:00]}  c5 {[%clk 0:02:52]} 4. exd5 {[%clk 0:02:58]}  exd5 {[%clk 0:02:51]} 5. dxc5 {[%clk 0:02:58]}  Bxc5 {[%clk 0:02:50]} 6. Nb3 {[%clk 0:02:57]}  Bb6 {[%clk 0:02:50]} 7. Nf3 {[%clk 0:02:57]}  Ne7 {[%clk 0:02:50]} 8. Bd3 {[%clk 0:02:54]}  O-O {[%clk 0:02:50]} 9. O-O {[%clk 0:02:54]}  Bf5 {[%clk 0:02:50]} 10. c3 {[%clk 0:02:54]}  Bxd3 {[%clk 0:02:50]} 11. Qxd3 {[%clk 0:02:54]}  Nbc6 {[%clk 0:02:50]} 12. Re1 {[%clk 0:02:49]}  h6 {[%clk 0:02:49]} 13. Be3 {[%clk 0:02:42]}  Bxe3 {[%clk 0:02:46]} 14. Rxe3 {[%clk 0:02:42]}  Re8 {[%clk 0:02:44]} 15. Rae1 {[%clk 0:02:39]}  Qd7 {[%clk 0:02:44]} 16. Nc5 {[%clk 0:02:37]}  Qc7 {[%clk 0:02:44]} 17. Qb5 {[%clk 0:02:31]}  b6 {[%clk 0:02:39]} 18. Na6 {[%clk 0:02:29]}  Qd7 {[%clk 0:02:34]} 19. Nb4 {[%clk 0:02:22]}  Red8 {[%clk 0:02:23]} 20. Nd3 {[%clk 0:02:00]}  Nf5 {[%clk 0:02:13]} 21. R3e2 {[%clk 0:01:56]}  Re8 {[%clk 0:01:29]} 22. Rxe8+ {[%clk 0:01:47]}  Rxe8 {[%clk 0:01:28]} 23. Rxe8+ {[%clk 0:01:46]}  Qxe8 {[%clk 0:01:28]} 24. Qxd5 {[%clk 0:01:46]}  Nfe7 {[%clk 0:01:19]} 25. Qe4 {[%clk 0:01:43]}  Qd7 {[%clk 0:01:19]} 26. h3 {[%clk 0:01:42]}  f5 {[%clk 0:01:17]} 27. Qe2 {[%clk 0:01:39]}  Qd5 {[%clk 0:01:16]} 28. b3 {[%clk 0:01:34]}  Kh7 {[%clk 0:01:15]} 29. Nf4 {[%clk 0:01:32]}  Qc5 {[%clk 0:01:13]} 30. c4 {[%clk 0:01:30]}  a5 {[%clk 0:01:12]} 31. Ne6 {[%clk 0:01:25]}  Qd6 {[%clk 0:01:06]} 32. g3 {[%clk 0:01:21]}  Ng6 {[%clk 0:01:02]} 33. h4 {[%clk 0:01:12]}  Nge5 {[%clk 0:01:01]} 34. Nf4 {[%clk 0:01:08]}  Nxf3+ {[%clk 0:00:56]} 35. Qxf3 {[%clk 0:01:08]}  Nd4 {[%clk 0:00:55]} 36. Qd5 {[%clk 0:01:07]}  Qf6 {[%clk 0:00:52]} 37. Kg2 {[%clk 0:01:02]}  Nc2 {[%clk 0:00:39]} 38. Nh5 {[%clk 0:00:56]}  Qg6 {[%clk 0:00:36]} 39. Nf4 {[%clk 0:00:53]}  Qf6 {[%clk 0:00:35]} 40. c5 {[%clk 0:00:48]}  Nb4 {[%clk 0:00:28]} 41. Qc4 {[%clk 0:00:43]}  bxc5 {[%clk 0:00:28]} 42. a3 {[%clk 0:00:42]}  Qc6+ {[%clk 0:00:24]} 43. Kh2 {[%clk 0:00:38]}  Na6 {[%clk 0:00:23]} 44. Qf7 {[%clk 0:00:30]}  Qf6 {[%clk 0:00:18]} 45. Qxf6 {[%clk 0:00:28]}  gxf6 {[%clk 0:00:17]} 46. Nd5 {[%clk 0:00:26]}  Kg6 {[%clk 0:00:16]} 47. Kg2 {[%clk 0:00:25]}  Kf7 {[%clk 0:00:15]} 48. Kf3 {[%clk 0:00:26]}  Ke6 {[%clk 0:00:13]} 49. Nc3 {[%clk 0:00:25]}  Nc7 {[%clk 0:00:11]} 50. Ne2 {[%clk 0:00:19]}  Ke5 {[%clk 0:00:11]} 51. Ke3 {[%clk 0:00:18]}  Nd5+ {[%clk 0:00:11]} 52. Kd3 {[%clk 0:00:18]}  f4 {[%clk 0:00:10]} 53. g4 {[%clk 0:00:16]}  f3 {[%clk 0:00:09]} 54. Ng3 {[%clk 0:00:16]}  Kf4 {[%clk 0:00:08]} 55. Nf5 {[%clk 0:00:14]}  h5 {[%clk 0:00:07]} 56. Kc4 {[%clk 0:00:13]}  hxg4 {[%clk 0:00:06]} 57. Ng3 {[%clk 0:00:11]}  Ne7 {[%clk 0:00:03]} 58. Kxc5 {[%clk 0:00:11]}  Ng6 {[%clk 0:00:01]} 59. b4 {[%clk 0:00:11]} 1-0


[Site "https://www.chess.com"]